[Event "Titled Tuesday Blitz September 27 Early 2022"]
[White "Tang, Andrew"]
[Black "Terzi, Alexei"]
[WhiteFideId "2059630"]
[BlackFideId "13505076"]
[WhiteElo "2584"]
[BlackElo "2031"]
[Result "0-1"]
[Round "03"]
[TimeControl "180+1"]
[Date "2022.09.27"]
[WhiteClock "0:00:01"]
[BlackClock "0:00:03"]

1. d4 {[%clk 0:03:00]}  Nf6 {[%clk 0:02:59]} 2. c4 {[%clk 0:03:00]}  e6 {[%clk 0:03:00]} 3. Nc3 {[%clk 0:03:01]}  d5 {[%clk 0:03:00]} 4. cxd5 {[%clk 0:03:01]}  exd5 {[%clk 0:03:01]} 5. Bg5 {[%clk 0:03:01]}  Be7 {[%clk 0:03:01]} 6. e3 {[%clk 0:03:01]}  O-O {[%clk 0:03:02]} 7. Bd3 {[%clk 0:03:02]}  c6 {[%clk 0:03:01]} 8. Qc2 {[%clk 0:03:02]}  Nbd7 {[%clk 0:03:01]} 9. Nge2 {[%clk 0:03:02]}  Re8 {[%clk 0:03:02]} 10. O-O {[%clk 0:03:02]}  Nf8 {[%clk 0:03:02]} 11. Bh4 {[%clk 0:03:03]}  Ng6 {[%clk 0:03:01]} 12. Bg3 {[%clk 0:02:58]}  Nh5 {[%clk 0:02:57]} 13. Rad1 {[%clk 0:02:53]}  Nxg3 {[%clk 0:02:56]} 14. Nxg3 {[%clk 0:02:54]}  Bf6 {[%clk 0:02:47]} 15. Rfe1 {[%clk 0:02:53]}  Nf8 {[%clk 0:02:42]} 16. b4 {[%clk 0:02:52]}  a6 {[%clk 0:02:40]} 17. a4 {[%clk 0:02:52]}  g6 {[%clk 0:02:38]} 18. b5 {[%clk 0:02:51]}  axb5 {[%clk 0:02:26]} 19. axb5 {[%clk 0:02:51]}  Bd7 {[%clk 0:02:21]} 20. bxc6 {[%clk 0:02:50]}  bxc6 {[%clk 0:02:21]} 21. Rc1 {[%clk 0:02:51]}  Qa5 {[%clk 0:02:20]} 22. Nb1 {[%clk 0:02:50]}  Qa2 {[%clk 0:02:00]} 23. Re2 {[%clk 0:02:35]}  Qxc2 {[%clk 0:01:56]} 24. Rexc2 {[%clk 0:02:36]}  Ra1 {[%clk 0:01:56]} 25. Nf1 {[%clk 0:02:35]}  Rb8 {[%clk 0:01:54]} 26. Nfd2 {[%clk 0:02:35]}  Ne6 {[%clk 0:01:46]} 27. Kf1 {[%clk 0:02:29]}  Bd8 {[%clk 0:01:38]} 28. Rc3 {[%clk 0:02:20]}  Ba5 {[%clk 0:01:34]} 29. Rb3 {[%clk 0:02:20]}  Ra8 {[%clk 0:01:17]} 30. Ke2 {[%clk 0:02:06]}  Bc7 {[%clk 0:01:16]} 31. g3 {[%clk 0:01:57]}  R8a2 {[%clk 0:01:11]} 32. h4 {[%clk 0:01:35]}  Ba5 {[%clk 0:01:09]} 33. Nc3 {[%clk 0:01:17]}  Rxc1 {[%clk 0:01:01]} 34. Nxa2 {[%clk 0:01:17]}  Ra1 {[%clk 0:00:51]} 35. Bb1 {[%clk 0:01:15]}  c5 {[%clk 0:00:47]} 36. dxc5 {[%clk 0:01:03]}  Nxc5 {[%clk 0:00:46]} 37. Rb2 {[%clk 0:01:00]}  Kg7 {[%clk 0:00:32]} 38. Nc1 {[%clk 0:00:46]}  Na4 {[%clk 0:00:29]} 39. Ncb3 {[%clk 0:00:34]}  Nxb2 {[%clk 0:00:25]} 40. Nxa1 {[%clk 0:00:34]}  Na4 {[%clk 0:00:23]} 41. Bd3 {[%clk 0:00:33]}  Nc3+ {[%clk 0:00:19]} 42. Kf3 {[%clk 0:00:33]}  Bb5 {[%clk 0:00:20]} 43. Bc2 {[%clk 0:00:30]}  Bb6 {[%clk 0:00:18]} 44. Nab3 {[%clk 0:00:30]}  Be2+ {[%clk 0:00:17]} 45. Kg2 {[%clk 0:00:28]}  Bc4 {[%clk 0:00:17]} 46. Nxc4 {[%clk 0:00:24]}  dxc4 {[%clk 0:00:18]} 47. Nd2 {[%clk 0:00:24]}  Nb5 {[%clk 0:00:14]} 48. Nxc4 {[%clk 0:00:24]}  Bc7 {[%clk 0:00:15]} 49. g4 {[%clk 0:00:17]}  Nd6 {[%clk 0:00:15]} 50. Nd2 {[%clk 0:00:17]}  f6 {[%clk 0:00:15]} 51. f4 {[%clk 0:00:17]}  Bb6 {[%clk 0:00:12]} 52. Kf3 {[%clk 0:00:17]}  Nb5 {[%clk 0:00:13]} 53. Nc4 {[%clk 0:00:16]}  Bc5 {[%clk 0:00:13]} 54. Ba4 {[%clk 0:00:16]}  Nc7 {[%clk 0:00:13]} 55. Bc6 {[%clk 0:00:16]}  Ne6 {[%clk 0:00:13]} 56. Bd7 {[%clk 0:00:15]}  Nc7 {[%clk 0:00:14]} 57. e4 {[%clk 0:00:15]}  Na6 {[%clk 0:00:13]} 58. g5 {[%clk 0:00:15]}  fxg5 {[%clk 0:00:11]} 59. hxg5 {[%clk 0:00:14]}  Nc7 {[%clk 0:00:11]} 60. f5 {[%clk 0:00:10]}  gxf5 {[%clk 0:00:10]} 61. exf5 {[%clk 0:00:11]}  h6 {[%clk 0:00:10]} 62. g6 {[%clk 0:00:03]}  Nd5 {[%clk 0:00:06]} 63. Bc6 {[%clk 0:00:03]}  Ne7 {[%clk 0:00:05]} 64. Be4 {[%clk 0:00:03]}  Kf6 {[%clk 0:00:05]} 65. Kf4 {[%clk 0:00:03]}  Bd4 {[%clk 0:00:03]} 66. Bd3 {[%clk 0:00:03]}  Bc3 {[%clk 0:00:03]} 67. Kg4 {[%clk 0:00:02]}  h5+ {[%clk 0:00:02]} 68. Kf4 {[%clk 0:00:01]}  h4 {[%clk 0:00:02]} 69. Kg4 {[%clk 0:00:01]}  h3 {[%clk 0:00:03]} 0-1


[Site "https://www.chess.com"]

[Event "Titled Tuesday Blitz September 27 Early 2022"]
[White "Thorhallsson, Simon"]
[Black "Broca Jimenez, Fernando"]
[WhiteFideId "2310090"]
[BlackFideId "5104742"]
[WhiteElo "2137"]
[BlackElo "2062"]
[Result "0-1"]
[Round "03"]
[TimeControl "180+1"]
[Date "2022.09.27"]
[WhiteClock "0:00:01"]
[BlackClock "0:00:03"]

1. e4 {[%clk 0:03:00]}  c5 {[%clk 0:02:54]} 2. Nc3 {[%clk 0:03:01]}  Nc6 {[%clk 0:02:53]} 3. Bb5 {[%clk 0:03:01]}  Nd4 {[%clk 0:02:54]} 4. Nf3 {[%clk 0:03:01]}  Nf6 {[%clk 0:02:52]} 5. e5 {[%clk 0:02:59]}  Nxb5 {[%clk 0:02:52]} 6. Nxb5 {[%clk 0:02:52]}  Nd5 {[%clk 0:02:51]} 7. O-O {[%clk 0:02:46]}  g6 {[%clk 0:02:51]} 8. d4 {[%clk 0:02:44]}  a6 {[%clk 0:02:45]} 9. dxc5 {[%clk 0:02:35]}  axb5 {[%clk 0:02:42]} 10. Qxd5 {[%clk 0:02:34]}  Bg7 {[%clk 0:02:43]} 11. Bg5 {[%clk 0:02:31]}  O-O {[%clk 0:02:43]} 12. a3 {[%clk 0:02:26]}  h6 {[%clk 0:02:43]} 13. Bh4 {[%clk 0:02:26]}  g5 {[%clk 0:02:44]} 14. Bg3 {[%clk 0:02:26]}  Qc7 {[%clk 0:02:30]} 15. Rfd1 {[%clk 0:02:19]}  Ra6 {[%clk 0:02:16]} 16. Nd4 {[%clk 0:02:15]}  b6 {[%clk 0:02:06]} 17. cxb6 {[%clk 0:02:07]}  Rxb6 {[%clk 0:02:07]} 18. Qe4 {[%clk 0:01:23]}  Bb7 {[%clk 0:02:02]} 19. Qe2 {[%clk 0:01:23]}  Qc4 {[%clk 0:01:32]} 20. Qe3 {[%clk 0:01:12]}  Ra6 {[%clk 0:00:53]} 21. c3 {[%clk 0:01:11]}  f6 {[%clk 0:00:46]} 22. Nf5 {[%clk 0:01:01]}  Rf7 {[%clk 0:00:20]} 23. Rxd7 {[%clk 0:00:34]}  Re6 {[%clk 0:00:17]} 24. Rxb7 {[%clk 0:00:29]}  fxe5 {[%clk 0:00:15]} 25. Nxg7 {[%clk 0:00:24]}  Rxg7 {[%clk 0:00:15]} 26. Re1 {[%clk 0:00:20]}  Rf7 {[%clk 0:00:12]} 27. Qd2 {[%clk 0:00:13]}  e4 {[%clk 0:00:11]} 28. Rb8+ {[%clk 0:00:13]}  Kg7 {[%clk 0:00:10]} 29. Qd8 {[%clk 0:00:14]}  Kg6 {[%clk 0:00:08]} 30. Qg8+ {[%clk 0:00:12]}  Rg7 {[%clk 0:00:09]} 31. Qe8+ {[%clk 0:00:12]}  Rf7 {[%clk 0:00:09]} 32. Qh8 {[%clk 0:00:10]}  Ref6 {[%clk 0:00:04]} 33. Rg8+ {[%clk 0:00:09]}  Kh5 {[%clk 0:00:05]} 34. h3 {[%clk 0:00:06]}  e3 {[%clk 0:00:05]} 35. Rxe3 {[%clk 0:00:06]}  Qd5 {[%clk 0:00:03]} 36. Kh2 {[%clk 0:00:03]}  Rxf2 {[%clk 0:00:01]} 37. Bxf2 {[%clk 0:00:04]}  Rxf2 {[%clk 0:00:01]} 38. Rg3 {[%clk 0:00:05]}  Qd6 {[%clk 0:00:02]} 39. Qg7 {[%clk 0:00:01]}  Rxg2+ {[%clk 0:00:03]} 0-1


[Site "https://www.chess.com"]

[Event "Titled Tuesday Blitz September 27 Early 2022"]
[White "Toncheva, Nadya"]
[Black "Kosakowski, Jakub"]
[WhiteFideId "2924056"]
[BlackFideId "1185080"]
[WhiteElo "1888"]
[BlackElo "2453"]
[Result "0-1"]
[Round "03"]
[TimeControl "180+1"]
[Date "2022.09.27"]
[WhiteClock "0:00:04"]
[BlackClock "0:00:44"]

1. e4 {[%clk 0:03:00]}  c6 {[%clk 0:02:53]} 2. d4 {[%clk 0:03:00]}  d5 {[%clk 0:02:52]} 3. Nc3 {[%clk 0:03:01]}  dxe4 {[%clk 0:02:52]} 4. Nxe4 {[%clk 0:03:01]}  Bf5 {[%clk 0:02:51]} 5. Ng3 {[%clk 0:03:01]}  Bg6 {[%clk 0:02:51]} 6. h4 {[%clk 0:02:59]}  h6 {[%clk 0:02:52]} 7. Nf3 {[%clk 0:03:00]}  e6 {[%clk 0:02:51]} 8. h5 {[%clk 0:02:57]}  Bh7 {[%clk 0:02:51]} 9. Bd3 {[%clk 0:02:58]}  Bxd3 {[%clk 0:02:52]} 10. Qxd3 {[%clk 0:02:58]}  Nf6 {[%clk 0:02:52]} 11. Bd2 {[%clk 0:02:55]}  c5 {[%clk 0:02:52]} 12. c3 {[%clk 0:02:52]}  Nc6 {[%clk 0:02:52]} 13. Qb5 {[%clk 0:02:48]}  a6 {[%clk 0:02:45]} 14. Qb3 {[%clk 0:02:39]}  Be7 {[%clk 0:02:40]} 15. O-O-O {[%clk 0:02:38]}  cxd4 {[%clk 0:02:39]} 16. Be3 {[%clk 0:02:21]}  dxe3 {[%clk 0:02:15]} 17. Rxd8+ {[%clk 0:02:19]}  Nxd8 {[%clk 0:02:16]} 18. fxe3 {[%clk 0:02:17]}  O-O {[%clk 0:02:16]} 19. e4 {[%clk 0:02:04]}  Nd7 {[%clk 0:02:12]} 20. Ne2 {[%clk 0:01:55]}  Nc5 {[%clk 0:02:07]} 21. Qc2 {[%clk 0:01:50]}  Nc6 {[%clk 0:02:07]} 22. g4 {[%clk 0:01:50]}  b5 {[%clk 0:02:02]} 23. g5 {[%clk 0:01:48]}  hxg5 {[%clk 0:01:45]} 24. h6 {[%clk 0:01:47]}  g4 {[%clk 0:01:45]} 25. Ned4 {[%clk 0:01:29]}  Nxd4 {[%clk 0:01:38]} 26. cxd4 {[%clk 0:01:25]}  Rac8 {[%clk 0:01:38]} 27. Kb1 {[%clk 0:01:15]}  g6 {[%clk 0:01:10]} 28. h7+ {[%clk 0:00:52]}  Kh8 {[%clk 0:01:10]} 29. Ne5 {[%clk 0:00:45]}  Bf6 {[%clk 0:01:01]} 30. Nxf7+ {[%clk 0:00:31]}  Rxf7 {[%clk 0:00:58]} 31. dxc5 {[%clk 0:00:32]}  g3 {[%clk 0:00:53]} 32. b4 {[%clk 0:00:20]}  Be5 {[%clk 0:00:50]} 33. Qd1 {[%clk 0:00:10]}  g2 {[%clk 0:00:46]} 34. Rg1 {[%clk 0:00:09]}  Rf2 {[%clk 0:00:46]} 35. Rxg2 {[%clk 0:00:03]}  Rxg2 {[%clk 0:00:45]} 36. Qd7 {[%clk 0:00:04]}  Rf8 {[%clk 0:00:44]} 0-1


[Site "https://www.chess.com"]

[Event "Titled Tuesday Blitz September 27 Early 2022"]
[White "Umarov, Sabir"]
[Black "Odegov, Artem"]
[WhiteFideId "14200538"]
[BlackFideId "34183644"]
[WhiteElo "2385"]
[BlackElo "2286"]
[Result "0-1"]
[Round "03"]
[TimeControl "180+1"]
[Date "2022.09.27"]
[WhiteClock "0:00:34"]
[BlackClock "0:00:17"]

1. e4 {[%clk 0:02:59]}  e6 {[%clk 0:03:00]} 2. e5 {[%clk 0:02:58]}  d5 {[%clk 0:02:57]} 3. exd6 {[%clk 0:02:57]}  Bxd6 {[%clk 0:02:57]} 4. d4 {[%clk 0:02:57]}  Nf6 {[%clk 0:02:58]} 5. Nf3 {[%clk 0:02:58]}  O-O {[%clk 0:02:59]} 6. Bd3 {[%clk 0:02:58]}  b6 {[%clk 0:02:59]} 7. O-O {[%clk 0:02:58]}  Bb7 {[%clk 0:03:00]} 8. Nbd2 {[%clk 0:02:56]}  Nbd7 {[%clk 0:03:00]} 9. Nc4 {[%clk 0:02:55]}  Be7 {[%clk 0:03:00]} 10. c3 {[%clk 0:02:51]}  c5 {[%clk 0:03:00]} 11. Re1 {[%clk 0:02:50]}  Qc7 {[%clk 0:03:00]} 12. Nce5 {[%clk 0:02:48]}  cxd4 {[%clk 0:03:00]} 13. Nxd7 {[%clk 0:02:46]}  Qxd7 {[%clk 0:03:00]} 14. Nxd4 {[%clk 0:02:46]}  Rfd8 {[%clk 0:03:00]} 15. Qe2 {[%clk 0:02:41]}  Bc5 {[%clk 0:02:56]} 16. Bb5 {[%clk 0:02:40]}  Qd5 {[%clk 0:02:54]} 17. Nf3 {[%clk 0:02:38]}  Ng4 {[%clk 0:02:42]} 18. Rf1 {[%clk 0:02:30]}  Qh5 {[%clk 0:01:34]} 19. Bf4 {[%clk 0:02:21]}  Rd5 {[%clk 0:01:17]} 20. h3 {[%clk 0:02:08]}  Nxf2 {[%clk 0:01:13]} 21. Rxf2 {[%clk 0:02:06]}  Bxf2+ {[%clk 0:01:12]} 22. Kxf2 {[%clk 0:01:54]}  Rxb5 {[%clk 0:01:11]} 23. g4 {[%clk 0:01:52]}  Qd5 {[%clk 0:00:55]} 24. c4 {[%clk 0:01:41]}  Qc5+ {[%clk 0:00:26]} 25. Be3 {[%clk 0:01:19]}  Bxf3 {[%clk 0:00:25]} 26. Bxc5 {[%clk 0:01:18]}  Bxe2 {[%clk 0:00:24]} 27. cxb5 {[%clk 0:01:18]}  Bxb5 {[%clk 0:00:25]} 28. Bd4 {[%clk 0:01:17]}  Rc8 {[%clk 0:00:23]} 29. Bc3 {[%clk 0:01:16]}  f6 {[%clk 0:00:23]} 30. Rd1 {[%clk 0:01:15]}  Kf7 {[%clk 0:00:23]} 31. Ke3 {[%clk 0:01:11]}  e5 {[%clk 0:00:23]} 32. a3 {[%clk 0:01:00]}  Ke6 {[%clk 0:00:19]} 33. Rd2 {[%clk 0:00:56]}  a5 {[%clk 0:00:18]} 34. Rf2 {[%clk 0:00:50]}  Rd8 {[%clk 0:00:17]} 35. Rd2 {[%clk 0:00:50]}  Rxd2 {[%clk 0:00:16]} 36. Bxd2 {[%clk 0:00:50]}  g6 {[%clk 0:00:16]} 37. Kf3 {[%clk 0:00:49]}  Bc6+ {[%clk 0:00:14]} 38. Ke3 {[%clk 0:00:45]}  a4 {[%clk 0:00:14]} 39. Bc3 {[%clk 0:00:45]}  b5 {[%clk 0:00:14]} 40. Bb4 {[%clk 0:00:44]}  f5 {[%clk 0:00:15]} 41. gxf5+ {[%clk 0:00:41]}  gxf5 {[%clk 0:00:16]} 42. h4 {[%clk 0:00:41]}  f4+ {[%clk 0:00:16]} 43. Kf2 {[%clk 0:00:41]}  Kf5 {[%clk 0:00:17]} 44. Bc5 {[%clk 0:00:41]}  e4 {[%clk 0:00:17]} 45. Bd4 {[%clk 0:00:40]}  e3+ {[%clk 0:00:17]} 46. Ke2 {[%clk 0:00:37]}  Ke4 {[%clk 0:00:17]} 47. Bb6 {[%clk 0:00:37]}  f3+ {[%clk 0:00:17]} 48. Ke1 {[%clk 0:00:36]}  Kd3 {[%clk 0:00:17]} 49. Kf1 {[%clk 0:00:34]}  f2 {[%clk 0:00:17]} 0-1


[Site "https://www.chess.com"]

[Event "Titled Tuesday Blitz September 27 Early 2022"]
[White "Vignesh, N R"]
[Black "Timofeev, Artyom"]
[WhiteFideId "25012215"]
[BlackFideId "4140419"]
[WhiteElo "2363"]
[BlackElo "2579"]
[Result "0-1"]
[Round "03"]
[TimeControl "180+1"]
[Date "2022.09.27"]
[WhiteClock "0:00:15"]
[BlackClock "0:00:22"]

1. d4 {[%clk 0:02:54]}  Nf6 {[%clk 0:02:59]} 2. c4 {[%clk 0:02:48]}  g6 {[%clk 0:02:59]} 3. Nf3 {[%clk 0:02:47]}  Bg7 {[%clk 0:02:58]} 4. g3 {[%clk 0:02:48]}  d5 {[%clk 0:02:57]} 5. Bg2 {[%clk 0:02:48]}  dxc4 {[%clk 0:02:57]} 6. Na3 {[%clk 0:02:44]}  O-O {[%clk 0:02:55]} 7. Nxc4 {[%clk 0:02:44]}  Nc6 {[%clk 0:02:55]} 8. O-O {[%clk 0:02:43]}  Be6 {[%clk 0:02:55]} 9. b3 {[%clk 0:02:41]}  a5 {[%clk 0:02:53]} 10. Bb2 {[%clk 0:02:40]}  a4 {[%clk 0:02:53]} 11. e3 {[%clk 0:02:40]}  Bd5 {[%clk 0:02:52]} 12. Qe2 {[%clk 0:02:38]}  e6 {[%clk 0:02:39]} 13. Ba3 {[%clk 0:02:33]}  Re8 {[%clk 0:02:38]} 14. Rfc1 {[%clk 0:02:32]}  Bf8 {[%clk 0:02:33]} 15. Bxf8 {[%clk 0:02:30]}  Rxf8 {[%clk 0:02:33]} 16. b4 {[%clk 0:02:08]}  a3 {[%clk 0:02:19]} 17. Rab1 {[%clk 0:02:02]}  Ne4 {[%clk 0:02:04]} 18. Ne1 {[%clk 0:01:57]}  Ne7 {[%clk 0:01:53]} 19. f3 {[%clk 0:01:51]}  Nd6 {[%clk 0:01:52]} 20. Ne5 {[%clk 0:01:41]}  Bc6 {[%clk 0:01:40]} 21. Nxc6 {[%clk 0:01:35]}  Nxc6 {[%clk 0:01:40]} 22. Nd3 {[%clk 0:01:34]}  Re8 {[%clk 0:01:38]} 23. Nc5 {[%clk 0:01:33]}  e5 {[%clk 0:01:34]} 24. dxe5 {[%clk 0:01:23]}  Nxe5 {[%clk 0:01:07]} 25. f4 {[%clk 0:01:23]}  Nd7 {[%clk 0:01:07]} 26. Nxb7 {[%clk 0:01:22]}  Nxb7 {[%clk 0:01:05]} 27. Bxb7 {[%clk 0:01:22]}  Rb8 {[%clk 0:01:03]} 28. Bc6 {[%clk 0:01:18]}  Qe7 {[%clk 0:01:03]} 29. Qd3 {[%clk 0:01:05]}  Red8 {[%clk 0:00:48]} 30. Qxa3 {[%clk 0:01:03]}  Nf6 {[%clk 0:00:48]} 31. Bf3 {[%clk 0:00:59]}  Rd2 {[%clk 0:00:46]} 32. Rd1 {[%clk 0:00:44]}  Rxd1+ {[%clk 0:00:45]} 33. Rxd1 {[%clk 0:00:41]}  Rxb4 {[%clk 0:00:44]} 34. Qd3 {[%clk 0:00:36]}  Kg7 {[%clk 0:00:40]} 35. Qc3 {[%clk 0:00:34]}  c5 {[%clk 0:00:36]} 36. Rc1 {[%clk 0:00:33]}  Ra4 {[%clk 0:00:28]} 37. e4 {[%clk 0:00:31]}  Rd4 {[%clk 0:00:25]} 38. e5 {[%clk 0:00:29]}  Nd7 {[%clk 0:00:25]} 39. Bc6 {[%clk 0:00:27]}  h5 {[%clk 0:00:21]} 40. Bxd7 {[%clk 0:00:27]}  Qxd7 {[%clk 0:00:22]} 41. Qxc5 {[%clk 0:00:27]}  Rd2 {[%clk 0:00:22]} 42. Qc3 {[%clk 0:00:26]}  Qd5 {[%clk 0:00:22]} 43. Qxd2 {[%clk 0:00:17]}  Qxd2 {[%clk 0:00:21]} 44. Rf1 {[%clk 0:00:18]}  Qxa2 {[%clk 0:00:21]} 45. h4 {[%clk 0:00:17]}  Qe2 {[%clk 0:00:20]} 46. Rf2 {[%clk 0:00:17]}  Qe3 {[%clk 0:00:21]} 47. Kg2 {[%clk 0:00:18]}  Kf8 {[%clk 0:00:21]} 48. f5 {[%clk 0:00:17]}  Qe4+ {[%clk 0:00:20]} 49. Kh3 {[%clk 0:00:17]}  gxf5 {[%clk 0:00:20]} 50. Kh2 {[%clk 0:00:17]}  Qxe5 {[%clk 0:00:20]} 51. Rf4 {[%clk 0:00:17]}  Kg7 {[%clk 0:00:21]} 52. Kg2 {[%clk 0:00:18]}  Kf6 {[%clk 0:00:21]} 53. Kf3 {[%clk 0:00:18]}  Qd5+ {[%clk 0:00:21]} 54. Ke3 {[%clk 0:00:19]}  Qb3+ {[%clk 0:00:21]} 55. Kf2 {[%clk 0:00:19]}  Qc2+ {[%clk 0:00:22]} 56. Kf3 {[%clk 0:00:19]}  Qd3+ {[%clk 0:00:21]} 57. Kg2 {[%clk 0:00:19]}  Ke5 {[%clk 0:00:21]} 58. Rf3 {[%clk 0:00:18]}  Qe4 {[%clk 0:00:21]} 59. Kf2 {[%clk 0:00:18]}  Qc6 {[%clk 0:00:21]} 60. Re3+ {[%clk 0:00:19]}  Kd4 {[%clk 0:00:21]} 61. Rf3 {[%clk 0:00:18]}  Qc2+ {[%clk 0:00:21]} 62. Kg1 {[%clk 0:00:18]}  Ke4 {[%clk 0:00:22]} 63. Rf4+ {[%clk 0:00:19]}  Ke3 {[%clk 0:00:22]} 64. Kf1 {[%clk 0:00:19]}  Qd3+ {[%clk 0:00:21]} 65. Kg2 {[%clk 0:00:19]}  Qd5+ {[%clk 0:00:21]} 66. Kg1 {[%clk 0:00:20]}  Qe5 {[%clk 0:00:21]} 67. Kg2 {[%clk 0:00:14]}  Qxf4 {[%clk 0:00:21]} 68. gxf4 {[%clk 0:00:15]}  Kxf4 {[%clk 0:00:22]} 0-1


[Site "https://www.chess.com"]

[Event "Titled Tuesday Blitz September 27 Early 2022"]
[White "Visakh N R"]
[Black "Danielyan, Vahe"]
[WhiteFideId "25012223"]
[BlackFideId "13304828"]
[WhiteElo "2448"]
[BlackElo "2421"]
[Result "0-1"]
[Round "03"]
[TimeControl "180+1"]
[Date "2022.09.27"]
[WhiteClock "0:01:08"]
[BlackClock "0:00:57"]

1. c4 {[%clk 0:03:00]}  c6 {[%clk 0:02:56]} 2. Nf3 {[%clk 0:02:56]}  Nf6 {[%clk 0:02:54]} 3. g3 {[%clk 0:02:52]}  g6 {[%clk 0:02:54]} 4. Bg2 {[%clk 0:02:52]}  Bg7 {[%clk 0:02:55]} 5. O-O {[%clk 0:02:53]}  O-O {[%clk 0:02:56]} 6. b3 {[%clk 0:02:50]}  d6 {[%clk 0:02:51]} 7. Bb2 {[%clk 0:02:50]}  Qa5 {[%clk 0:02:50]} 8. Nc3 {[%clk 0:02:47]}  Qh5 {[%clk 0:02:50]} 9. d3 {[%clk 0:02:17]}  Bh3 {[%clk 0:02:47]} 10. e3 {[%clk 0:02:18]}  Bg4 {[%clk 0:02:44]} 11. Qe2 {[%clk 0:02:04]}  Nbd7 {[%clk 0:02:43]} 12. Nb1 {[%clk 0:01:58]}  e5 {[%clk 0:02:42]} 13. Nbd2 {[%clk 0:01:58]}  Rae8 {[%clk 0:02:40]} 14. Rad1 {[%clk 0:01:51]}  a5 {[%clk 0:02:37]} 15. Ne4 {[%clk 0:01:50]}  Nxe4 {[%clk 0:02:31]} 16. dxe4 {[%clk 0:01:51]}  f5 {[%clk 0:02:32]} 17. h3 {[%clk 0:01:51]}  Bxh3 {[%clk 0:01:44]} 18. Bxh3 {[%clk 0:01:50]}  fxe4 {[%clk 0:01:45]} 19. Bxd7 {[%clk 0:01:36]}  exf3 {[%clk 0:01:45]} 20. Qd3 {[%clk 0:01:35]}  e4 {[%clk 0:01:02]} 21. Qc2 {[%clk 0:01:08]}  Rf5 {[%clk 0:00:57]} 0-1


[Site "https://www.chess.com"]